{"text_format":"1","workbook":"xlsx","n_sheets":3,"sheets":["Title","Instructions","Investigation"],"not_rendered":{"charts":0,"images":5,"macros":1,"external_links":1,"defined_names":11,"comments":0,"pivot_tables":0},"unopened":[],"bounds":{"document_bytes":16777216,"sheet_cells":100000,"rows_first":2000,"rows_last":500,"rows_between":2000,"halvings":0,"cell_chars":16384,"cell_head_chars":4096},"cells_cut":0,"cells_raw":0,"read":"whole","date_system":"1900"}

{"sheet":"Title","index":0,"n_rows":14,"n_cols":1,"rows_kept":14,"cut":false,"hidden":false,"merged":[]}
[" | NSW Department of Education"]
["Fakes on trial"]
["Learning intention"]
["•   To understand and recognise randomness in the outcome of an event"]
["•   To be able to make a prediction based on theoretical probability knowledge"]
["Success criteria"]
["•    I can explain randomness in the outcome of an event"]
["•    I can make a prediction for the outcome of an event"]
["•    I can justify a prediction of an event"]
["Outcomes"]
["•   develops understanding and fluency in mathematics through exploring and connecting mathematical concepts, choosing and applying mathematical techniques to solve problems, and communicating their thinking and reasoning coherently and clearly MAO-WM-01"]
["•   solves problems involving the probabilites of simple chance experiments MA4-PRO-C-01"]
["Mathematics K–10 Syllabus © NSW Education Standards Authority (NESA) for and on behalf of the Crown in right of the State of New South Wales, 2022."]
["© NSW Department of Education, 2023"]

{"sheet":"Instructions","index":1,"n_rows":21,"n_cols":2,"rows_kept":21,"cut":false,"hidden":false,"merged":[[3,1,3,3]]}
[]
[]
[]
[null,"Fakes on Trial"]
[]
[null,"Use the Refresh button to generate a new trials of flipping a coin 50 times."]
[]
[null,"The results have beeen colour coded to help you identify streaks or runs of Heads or Tails"]
[]
[]
[]
[]
[]
[]
[]
[]
[]
[]
[]
[]
[null,"Use the Copy data set buttons to save a copy of your results for analysis."]

{"sheet":"Investigation","index":2,"n_rows":18,"n_cols":16,"rows_kept":18,"cut":false,"hidden":false,"merged":[]}
[]
[null,"Fakes on trial"]
[]
[null,"Press the Refresh button to generate a new set of results",null,null,null,null,null,null,null,"Data set 1",null,null,null,null,null,"Data set 3"]
[]
[null,"Use the Copy data set buttons, to save a copy of your results"]
[]
[]
[null,{"$f":"IF(RANDBETWEEN(0,1)=0, \"H\",\"T\")","v":"T"},{"$f":"IF(RANDBETWEEN(0,1)=0, \"H\",\"T\")","v":"T"},"T","H","T"]
[null,"H",{"$f":"IF(RANDBETWEEN(0,1)=0, \"H\",\"T\")","v":"T"},"H","H","T"]
[null,"T","T","T","H","T"]
[null,"T","H","H","T","T"]
[null,"T","H","H","T","T"]
[null,"T","H","T","T","T"]
[null,"T","T","H","H","H"]
[null,"H","T","T","T","T"]
[null,"H","H","H","T","T"]
[null,"H","T","T","H","T",null,null,null,"Data set 2",null,null,null,null,null,"Data set 4"]